bitfinex-derivatives/quotes_ETHF0:USTF0_20260223
["timestamp","ask_amount","ask_price","bid_price","bid_amount"]
[1771883326811,2.80174896,1865.5,1864.3,0.62647865]
[1771883327012,6.02313666,1865.4,1864.3,0.62647865]
[1771883327310,6.02313666,1865.3,1864.3,0.62647865]
[1771883327511,2.80582946,1865.5,1864.3,0.62647865]
[1771883327711,6.0213281,1865.4,1864.3,0.62647865]
[1771883327920,6.0213281,1865.3,1864.3,0.62647865]
[1771883328215,2.80582946,1865.5,1864.3,0.62647865]
[1771883328414,6.02003741,1865.4,1864.3,0.62647865]
[1771883328613,6.02003741,1865.3,1864.3,0.62647865]
[1771883328817,2.80582946,1865.5,1864.3,0.62647865]
[1771883329019,6.02003741,1865.4,1864.3,0.62647865]
[1771883329315,6.02003741,1865.3,1864.3,0.62647865]
[1771883329518,2.80582946,1865.5,1864.3,0.62647865]
[1771883329719,6.01913281,1865.4,1864.3,0.62647865]
[1771883329916,6.01913281,1865.3,1864.3,0.62647865]
[1771883330118,2.80582946,1865.5,1864.3,0.62647865]
[1771883330320,6.01913281,1865.4,1864.3,0.62647865]
[1771883330620,6.01913281,1865.3,1864.3,0.62647865]
[1771883330821,2.80582946,1865.5,1864.3,0.62647865]
[1771883331120,6.01858617,1865.4,1864.3,0.62647865]
[1771883331316,6.01858617,1865.3,1864.3,0.62647865]
[1771883331516,2.53366896,1865.3,1864.3,0.62647865]
[1771883335821,2.80582946,1865.5,1864.3,0.62647865]
[1771883336017,6.01238966,1865.4,1864.3,0.62647865]
[1771883336318,6.01238966,1865.3,1864.3,0.62647865]
[1771883336520,2.80582946,1865.5,1864.3,0.62647865]
[1771883336720,6.01277773,1865.4,1864.3,0.62647865]
[1771883337019,6.01277773,1865.3,1864.3,0.62647865]
[1771883337220,2.80582946,1865.5,1864.3,0.62647865]
[1771883337519,6.01342439,1865.4,1864.3,0.62647865]
[1771883337719,6.01342439,1865.3,1864.3,0.62647865]
[1771883337920,2.80582946,1865.5,1864.3,0.62647865]
[1771883338120,6.01365446,1865.4,1864.3,0.62647865]
[1771883338321,6.01365446,1865.3,1864.3,0.62647865]
[1771883338622,2.80582946,1865.5,1864.3,0.62647865]
[1771883338821,6.01436172,1865.4,1864.3,0.62647865]
[1771883339023,6.01436172,1865.3,1864.3,0.62647865]
[1771883339222,2.80582946,1865.5,1864.3,0.62647865]
[1771883339424,2.80176896,1865.3,1864.3,0.62647865]
[1771883339623,6.01580484,1865.2,1864.3,0.62647865]
[1771883341121,2.53366896,1865.0,1864.3,0.62647865]
[1771883342117,2.53366896,1865.0,1864.3,0.62838905]
[1771883342521,0.26813,1865.1,1864.3,0.62838905]
[1771883342723,4.74962685,1865.5,1864.3,0.62838905]
[1771883343029,6.01916991,1865.4,1864.3,0.62838905]
[1771883343227,6.01916991,1865.3,1864.3,0.62838905]
[1771883343428,6.01916991,1865.2,1864.3,0.62838905]
[1771883343727,0.2721605,1865.5,1864.3,0.62838905]
[1771883344025,6.02225092,1865.4,1864.3,0.62838905]
[1771883344218,6.02225092,1865.3,1864.3,0.62838905]
[1771883344418,6.02225092,1865.2,1864.3,0.89662905]
[1771883344619,4.74962685,1865.5,1864.4,0.62244317]
[1771883344822,6.02547354,1865.4,1864.4,0.62244317]
[1771883345019,6.02547354,1865.3,1864.4,0.62244317]
[1771883345224,6.02547354,1865.2,1864.4,0.62244317]
[1771883345425,4.74962685,1865.5,1864.4,0.62244317]
[1771883345627,6.02708316,1865.4,1864.4,0.62244317]
[1771883345827,6.02708316,1865.3,1864.4,0.62244317]
[1771883346032,6.02708316,1865.2,1864.4,0.62244317]
[1771883346232,4.74962685,1865.5,1864.4,0.62244317]
[1771883346530,6.02720041,1865.4,1864.4,0.62244317]
[1771883346732,6.02720041,1865.3,1864.4,0.62244317]
[1771883346929,6.02720041,1865.2,1864.4,0.62244317]
[1771883347129,4.74962685,1865.5,1864.4,0.62244317]
[1771883347331,6.02882665,1865.4,1864.4,0.62244317]
[1771883347529,6.02882665,1865.3,1864.4,0.62244317]
[1771883347729,6.02882665,1865.2,1864.4,0.62244317]
[1771883347930,6.02882665,1865.1,1864.4,0.62244317]
[1771883348130,4.74962685,1865.5,1864.4,0.62244317]
[1771883348334,6.03165422,1865.4,1864.4,0.62244317]
[1771883348635,6.03165422,1865.3,1864.4,0.62244317]
[1771883348835,6.03165422,1865.2,1864.4,0.62244317]
[1771883349128,6.03165422,1865.1,1864.4,0.62244317]
[1771883349333,4.47746635,1865.4,1864.4,0.62244317]
[1771883349532,10.51569252,1865.4,1864.4,0.62244317]
[1771883350431,6.03822617,1865.3,1864.4,0.62244317]
[1771883351136,6.03822617,1865.2,1864.4,0.62244317]
[1771883356740,6.03822617,1865.1,1864.4,0.62244317]
[1771883356938,4.47746635,1865.4,1864.4,0.62244317]
[1771883357136,10.52031994,1865.4,1864.4,0.62244317]
[1771883358036,6.04285359,1865.4,1864.4,0.62244317]
[1771883358237,6.04285359,1865.3,1864.4,0.62244317]
[1771883358540,6.04285359,1865.2,1864.4,0.62244317]
[1771883358741,4.74962685,1865.5,1864.4,0.62244317]
[1771883358943,6.0335376,1865.4,1864.4,0.62244317]
[1771883359142,6.0335376,1865.3,1864.4,0.62244317]
[1771883359342,6.0335376,1865.2,1864.4,0.62244317]
[1771883359539,4.74962685,1865.5,1864.4,0.62244317]
[1771883359840,6.03385002,1865.4,1864.4,0.62244317]
[1771883360042,6.03385002,1865.3,1864.4,0.62244317]
[1771883360241,6.03385002,1865.2,1864.4,0.62244317]
[1771883360442,4.74962685,1865.5,1864.4,0.62244317]
[1771883360740,6.03359624,1865.4,1864.4,0.62244317]
[1771883360938,6.03359624,1865.3,1864.4,0.62244317]
[1771883361137,6.03359624,1865.2,1864.4,0.62244317]
[1771883361333,4.74962685,1865.5,1864.4,0.62244317]
[1771883361544,6.03386745,1865.4,1864.4,0.62244317]
[1771883361841,4.74962685,1865.5,1864.4,0.62244317]
[1771883361842,6.03386745,1865.3,1864.4,0.62244317]
[1771883362143,6.03386745,1865.2,1864.4,0.62244317]
[1771883362341,4.74962685,1865.5,1864.4,0.62244317]
[1771883362542,6.03380576,1865.4,1864.4,0.62244317]
[1771883362841,6.03380576,1865.3,1864.4,0.62244317]
[1771883363144,6.03380576,1865.2,1864.4,0.62244317]
[1771883363442,4.74962685,1865.5,1864.4,0.62244317]
[1771883363644,6.03500807,1865.4,1864.4,0.62244317]
[1771883363844,6.03500807,1865.3,1864.4,0.62244317]
[1771883364044,6.03500807,1865.2,1864.4,0.62244317]
[1771883364246,4.74962685,1865.5,1864.4,0.62244317]
[1771883364444,6.03466336,1865.4,1864.6,0.62642917]
[1771883364649,0.0040805,1865.5,1864.6,0.62642917]
[1771883364948,6.035031,1865.4,1864.6,0.62642917]
[1771883365148,0.0040805,1865.5,1864.6,0.62642917]
[1771883365448,6.0338979,1865.4,1864.6,0.62642917]
[1771883365748,0.0040805,1865.5,1864.6,0.62642917]
[1771883365948,6.03380985,1865.4,1864.6,0.62642917]
[1771883366146,0.0040805,1865.5,1864.6,0.62642917]
[1771883366347,6.02717333,1865.4,1864.6,0.62642917]
[1771883366648,0.0040805,1865.5,1864.6,0.62642917]
[1771883366850,6.028022,1865.4,1864.6,0.62642917]
[1771883367047,0.0040805,1865.5,1864.6,0.62642917]
[1771883367348,6.02673956,1865.4,1864.6,0.62642917]
[1771883367547,0.0040805,1865.5,1864.6,0.89462917]
[1771883367745,0.0040805,1865.5,1864.9,0.62650316]
[1771883368043,4.47746635,1866.0,1865.1,0.62650316]
[1771883368249,6.0265725,1865.9,1865.3,0.62650316]
[1771883368450,0.98518055,1866.1,1865.3,0.62650316]
[1771883368651,6.02398833,1866.0,1865.3,0.62650316]
[1771883368850,0.00507097,1866.0,1865.3,0.63330658]
[1771883373260,0.00507097,1866.0,1865.6,0.62185577]
[1771883373654,0.00507097,1866.0,1865.4,0.62185577]
[1771883374660,0.00507097,1866.0,1865.6,0.62174172]
[1771883377861,2.52831218,1866.6,1865.6,0.62174172]
[1771883378064,7.00114912,1866.6,1865.6,0.62174172]
[1771883378268,2.52831218,1866.4,1865.6,0.62174172]
[1771883378567,6.01034069,1866.3,1865.6,0.62174172]
[1771883378764,2.52831218,1866.4,1865.6,0.62174172]
[1771883379065,2.53382838,1866.4,1865.6,0.62174172]
[1771883381867,0.0055162,1866.4,1865.6,0.62174172]
[1771883382367,0.0055162,1866.4,1865.5,2.52831218]
[1771883382368,0.0055162,1866.4,1866.0,0.61768559]
[1771883383767,0.0055162,1866.4,1866.0,3.14599777]
[1771883383971,0.0055162,1866.4,1866.1,0.61768559]
[1771883384371,2.52831218,1866.3,1865.6,0.61801887]
[1771883384573,0.0055162,1866.4,1865.6,0.61801887]
[1771883385472,2.52831218,1866.3,1865.6,0.61801887]
[1771883386068,0.0055162,1866.4,1865.6,0.61801887]
[1771883387273,2.52831218,1866.3,1865.6,0.61801887]
[1771883387864,0.0055162,1866.4,1865.6,0.61801887]
[1771883390771,2.52831218,1866.3,1865.6,0.61801887]
[1771883391677,2.52831218,1866.1,1865.6,0.61801887]
[1771883392474,2.52831218,1866.3,1865.6,0.61801887]
[1771883393978,0.0055162,1866.4,1865.6,0.61801887]
[1771883394374,2.52831218,1866.3,1865.6,0.61801887]
[1771883397273,6.02666145,1866.2,1865.6,0.61801887]
[1771883397482,2.52831218,1866.3,1865.6,0.61801887]
[1771883397676,6.02563663,1866.2,1865.6,0.61801887]
[1771883397870,2.52831218,1866.3,1865.6,0.61801887]
[1771883398079,6.02648691,1866.2,1865.6,0.62801887]
[1771883398280,2.52831218,1866.3,1865.6,0.62801887]
[1771883398579,6.02811132,1866.2,1865.6,0.62801887]
[1771883398782,2.52831218,1866.3,1865.6,0.62801887]
[1771883398983,6.02811396,1866.2,1865.6,0.62801887]
[1771883399279,2.52831218,1866.3,1865.6,0.62801887]
[1771883399580,6.0285624,1866.2,1865.6,0.62801887]
[1771883399780,2.52831218,1866.3,1865.6,0.62801887]
[1771883399980,6.02861883,1866.2,1865.6,0.62801887]
[1771883400281,0.0055162,1866.4,1865.6,0.62801887]
[1771883400580,6.02880817,1866.3,1865.6,0.62801887]
[1771883400880,6.02880817,1866.2,1865.6,0.62801887]
[1771883401079,0.0055162,1866.4,1865.6,0.62801887]
[1771883401275,6.02881319,1866.3,1865.6,0.62801887]
[1771883401480,8.55712537,1866.2,1865.6,0.62801887]
[1771883401671,2.52831218,1866.0,1865.6,0.62801887]
[1771883401875,2.52831218,1866.0,1865.6,0.01]
[1771883403281,2.52831218,1866.0,1865.4,0.62233329]
[1771883404081,2.52831218,1865.8,1865.3,0.62913671]
[1771883405371,2.52831218,1865.8,1865.3,0.00680342]
[1771883405574,2.52831218,1865.8,1865.3,0.62969164]
[1771883406781,2.52831218,1865.8,1865.3,0.00680342]
[1771883407081,2.52831218,1865.8,1865.3,0.63217846]
[1771883409081,2.52831218,1865.8,1865.0,0.6277819]
[1771883409384,2.52831218,1865.6,1865.0,0.6277819]
[1771883409679,2.52831218,1865.4,1864.7,0.6277819]
[1771883410384,2.52831218,1865.4,1864.7,0.63188789]
[1771883410884,2.52831218,1865.2,1864.7,0.63188789]
[1771883411389,2.52831218,1865.4,1864.7,0.63188789]
[1771883412488,0.26806,1865.6,1864.7,0.63188789]
[1771883412686,2.52831218,1865.5,1864.7,0.63188789]
[1771883428495,2.52831218,1865.1,1864.5,0.63441218]
[1771883428794,2.79642218,1865.3,1864.5,0.63441218]
[1771883429392,6.02173429,1865.2,1864.5,0.63441218]
[1771883429593,2.79642218,1865.3,1864.5,0.64076812]
[1771883429795,6.02306947,1865.2,1864.5,0.64076812]
[1771883429996,2.79642218,1865.3,1864.5,0.64076812]
[1771883430195,6.02308182,1865.2,1864.5,0.64076812]
[1771883430494,2.79642218,1865.3,1864.5,0.64076812]
[1771883430697,6.02258608,1865.2,1864.5,0.64076812]
[1771883430891,2.79642218,1865.3,1864.5,0.64076812]
[1771883431091,6.02260118,1865.2,1864.5,0.64076812]
[1771883431292,2.79642218,1865.3,1864.5,0.64076812]
[1771883431489,6.02538672,1865.2,1864.5,0.64076812]
[1771883431692,2.79642218,1865.3,1864.5,0.64076812]
[1771883431999,6.02595408,1865.2,1864.5,0.64076812]
[1771883432294,2.79642218,1865.3,1864.5,0.64076812]
[1771883432494,2.52831218,1865.1,1864.5,0.64076812]
[1771883433299,0.26811,1865.3,1864.5,0.64076812]
[1771883433493,6.03082887,1865.2,1864.5,0.64076812]
[1771883433694,0.26811,1865.3,1864.5,0.64076812]
[1771883433989,6.03083124,1865.2,1864.5,0.64076812]
[1771883434194,6.0321747,1865.1,1864.5,0.64076812]
[1771883434395,0.26811,1865.3,1864.5,0.64076812]
[1771883434600,6.03217571,1865.2,1864.5,0.64076812]
[1771883434897,6.03217571,1865.1,1864.5,0.00635594]
[1771883435199,0.26811,1865.3,1864.5,0.64371198]
[1771883435398,6.03423415,1865.2,1864.5,0.64371198]
[1771883435600,6.03423415,1865.1,1864.5,0.64371198]
[1771883435796,0.26811,1865.3,1864.5,0.64371198]
[1771883435996,6.0365753,1865.2,1864.5,0.64371198]
[1771883436193,6.0365753,1865.1,1864.5,0.64371198]
[1771883436399,0.26811,1865.3,1864.5,0.64371198]
[1771883436602,6.03806659,1865.2,1864.5,0.64371198]
[1771883436799,6.03806659,1865.1,1864.5,0.64371198]
[1771883437096,0.26811,1865.3,1864.5,0.64371198]
[1771883437298,6.03988052,1865.2,1864.5,0.64371198]
[1771883437499,6.03988052,1865.1,1864.5,0.64371198]
[1771883437699,0.26811,1865.3,1864.5,0.64371198]
[1771883437900,6.03445514,1865.2,1864.5,0.64371198]
[1771883438100,6.03445514,1865.1,1864.5,0.64371198]
[1771883438303,0.26811,1865.3,1864.5,0.64371198]
[1771883438502,6.03603748,1865.2,1864.5,0.64371198]
[1771883438799,4.47159463,1865.5,1864.5,0.64371198]
[1771883439099,6.03841872,1865.4,1864.7,0.63571354]
[1771883439298,11.23665463,1865.7,1864.7,0.63571354]
[1771883439602,6.0409256,1865.6,1864.7,0.63571354]
[1771883439797,6.0409256,1865.5,1864.7,0.63571354]
[1771883440101,6.0409256,1865.4,1864.7,0.63571354]
[1771883440298,0.26806,1865.7,1864.7,0.63571354]
[1771883440498,6.04484385,1865.6,1864.7,0.63571354]
[1771883440699,6.04484385,1865.5,1864.7,0.63571354]
[1771883440895,6.04484385,1865.4,1864.7,0.63571354]
[1771883441092,0.26806,1865.7,1864.7,0.63571354]
[1771883441295,6.04496037,1865.6,1864.7,0.63571354]
[1771883441492,6.04496037,1865.5,1864.7,0.63571354]
[1771883441695,6.04496037,1865.4,1864.7,0.63571354]
[1771883441996,0.26806,1865.7,1864.7,0.63571354]
[1771883442193,6.0383122,1865.6,1864.7,0.63571354]
[1771883442398,6.0383122,1865.5,1864.7,0.63571354]
[1771883442593,6.0383122,1865.4,1864.7,0.63571354]
[1771883442805,0.26806,1865.7,1864.7,0.63571354]
[1771883443003,6.03779827,1865.6,1864.7,0.63571354]
[1771883443197,6.03779827,1865.5,1864.7,0.63571354]
[1771883443403,6.03779827,1865.4,1864.7,0.63571354]
[1771883443604,0.26806,1865.7,1864.7,0.63571354]
[1771883443806,6.03768085,1865.6,1864.7,0.63571354]
[1771883444103,6.03768085,1865.5,1864.7,0.63571354]
[1771883444402,6.03768085,1865.4,1864.7,0.63571354]
[1771883444598,0.26806,1865.7,1864.7,0.63571354]
[1771883444906,6.03755665,1865.6,1864.7,0.63571354]
[1771883445105,6.03755665,1865.5,1864.7,0.63571354]
[1771883445402,0.26806,1865.7,1864.7,0.63571354]
[1771883445598,6.0377197,1865.6,1864.7,0.63571354]
[1771883445802,6.0377197,1865.5,1864.7,0.63571354]
[1771883446003,0.26806,1865.7,1864.7,0.63571354]
[1771883446301,6.03776675,1865.6,1864.9,0.63692974]
[1771883446600,4.73959463,1866.1,1864.9,0.63692974]
[1771883446800,6.03838632,1866.0,1864.9,0.63692974]
[1771883447001,6.03838632,1865.9,1864.9,0.63692974]
[1771883447203,6.03838632,1865.8,1864.9,0.63692974]
[1771883447405,4.73959463,1866.1,1864.9,0.63692974]
[1771883447706,6.03613413,1866.0,1864.9,0.63692974]
[1771883448004,8.56795068,1865.9,1864.9,0.63692974]
[1771883448204,6.03613413,1865.8,1864.9,0.63692974]
[1771883448405,6.03613413,1865.7,1864.9,0.63692974]
[1771883448601,2.53181655,1865.9,1864.9,0.63692974]
[1771883448803,13.03777273,1865.9,1864.9,0.63692974]
[1771883449002,6.03436155,1865.8,1864.9,0.63692974]
[1771883449207,6.03436155,1865.7,1864.9,0.63692974]
[1771883449404,6.03436155,1865.6,1864.9,0.63692974]
[1771883449603,7.00341118,1865.9,1864.9,0.63692974]
[1771883449804,6.0336618,1865.8,1864.9,0.63692974]
[1771883450006,6.0336618,1865.7,1864.9,0.63692974]
[1771883450203,6.0336618,1865.6,1864.9,0.63692974]
[1771883450400,7.00341118,1865.9,1864.9,0.63692974]
[1771883450605,6.0330122,1865.8,1864.9,0.63692974]
[1771883450905,6.0330122,1865.7,1864.9,0.63692974]
[1771883451104,6.0330122,1865.6,1864.9,0.63692974]
[1771883451300,7.00341118,1865.9,1864.9,0.63692974]
[1771883451602,6.03161479,1865.8,1864.9,0.63692974]
[1771883451907,6.03161479,1865.7,1864.9,0.63692974]
[1771883452106,4.47159463,1866.0,1864.9,0.63692974]
[1771883452303,10.50018337,1866.0,1864.9,0.63692974]
[1771883452499,10.50018337,1866.0,1865.0,0.63800982]
[1771883453307,6.02858874,1865.9,1865.0,0.63800982]
[1771883453511,6.02858874,1865.8,1865.0,0.63800982]
[1771883453704,4.73959463,1866.1,1865.0,0.63800982]
[1771883454004,6.02603328,1866.0,1865.0,0.63800982]
[1771883454312,6.02603328,1865.9,1865.0,0.63800982]
[1771883454502,6.02603328,1865.8,1865.0,0.63800982]
[1771883454810,4.73959463,1866.1,1865.0,0.63800982]
[1771883455009,6.02426733,1866.0,1865.0,0.63800982]
[1771883455205,6.02426733,1865.9,1865.0,0.63800982]
[1771883455405,6.02426733,1865.8,1865.0,0.63800982]
[1771883455605,4.73959463,1866.1,1865.0,0.63800982]
[1771883455811,6.02298893,1866.0,1865.0,0.63800982]
[1771883456108,6.02298893,1865.9,1865.0,0.63800982]
[1771883456305,6.02298893,1865.8,1865.0,0.63800982]
[1771883456509,4.73959463,1866.1,1865.0,0.63800982]
[1771883456710,6.02136682,1866.0,1865.0,0.63800982]
[1771883456910,6.02136682,1865.9,1865.0,0.63800982]
[1771883457106,6.02136682,1865.8,1865.0,0.63800982]
[1771883457309,4.73959463,1866.1,1865.0,0.63800982]
[1771883457508,6.01676359,1866.0,1865.0,0.63800982]
[1771883457712,6.01676359,1865.9,1865.0,0.63800982]
[1771883457910,6.01676359,1865.8,1865.0,0.63800982]
[1771883458112,4.73959463,1866.1,1865.0,0.63800982]
[1771883458312,6.01572309,1866.0,1865.0,0.63800982]
[1771883458507,6.01572309,1865.9,1865.0,0.63800982]
[1771883458707,0.268,1866.1,1865.0,0.63800982]
[1771883458907,6.01565851,1866.0,1865.0,0.63800982]
[1771883459210,6.01565851,1865.9,1865.0,0.63800982]
[1771883459406,0.268,1866.1,1865.0,0.63800982]
[1771883459607,6.01537464,1866.0,1865.0,0.63800982]
[1771883459802,6.01537464,1865.9,1865.0,0.63800982]
[1771883460008,0.268,1866.1,1865.0,0.63800982]
[1771883460202,6.01534421,1866.0,1865.0,0.63800982]
[1771883460411,6.01534421,1865.9,1865.0,0.63800982]
[1771883460611,0.268,1866.1,1865.0,0.63800982]
[1771883460814,6.01807475,1866.0,1865.0,0.63800982]
[1771883461011,6.01807475,1865.9,1865.0,0.63800982]
[1771883461212,0.268,1866.1,1865.0,0.63800982]
[1771883461510,6.01865498,1866.0,1865.2,0.63948511]
[1771883461707,0.0055162,1866.4,1865.2,0.63948511]
[1771883461910,6.01890044,1866.3,1865.4,0.63948511]
[1771883462112,6.01890044,1866.2,1865.4,0.63948511]
[1771883462410,6.01890044,1866.1,1865.4,0.63948511]
[1771883462608,0.0055162,1866.4,1865.4,0.63948511]
[1771883462810,6.019995,1866.3,1865.4,0.63948511]
[1771883463010,0.0055162,1866.4,1865.4,0.63948511]
[1771883463210,6.0203492,1866.3,1865.4,0.63948511]
[1771883463409,0.0055162,1866.4,1865.4,0.63948511]
[1771883463608,6.01929546,1866.3,1865.4,0.63948511]
[1771883463808,0.0055162,1866.4,1865.4,0.63948511]
[1771883464009,6.01994827,1866.3,1865.4,0.63948511]
[1771883464213,0.0055162,1866.4,1865.4,0.63948511]
[1771883464513,6.01896469,1866.3,1865.4,0.63948511]
[1771883464713,0.0055162,1866.4,1865.4,0.63948511]
[1771883465006,6.01889422,1866.3,1865.4,0.63948511]
[1771883465212,0.0055162,1866.4,1865.4,0.63948511]
[1771883465412,6.01847304,1866.3,1865.4,0.63948511]
[1771883465615,0.0055162,1866.4,1865.4,0.63948511]
[1771883465810,6.01869824,1866.3,1865.4,0.63948511]
[1771883466102,0.0055162,1866.4,1865.4,0.63948511]
[1771883466304,6.01995571,1866.3,1865.4,0.63948511]
[1771883466510,0.0055162,1866.4,1865.4,0.63948511]
[1771883466711,6.01872569,1866.3,1865.4,0.63948511]
[1771883466913,0.0055162,1866.4,1865.4,0.63948511]
[1771883467114,6.01822792,1866.3,1865.4,0.63948511]
[1771883467315,0.0055162,1866.4,1865.4,0.63948511]
[1771883467515,6.01870299,1866.3,1865.4,0.63948511]
[1771883467712,0.0055162,1866.4,1865.4,0.63948511]
[1771883467914,6.01889059,1866.3,1865.4,0.63948511]
[1771883468117,0.0055162,1866.4,1865.4,0.63948511]
[1771883468416,6.01924509,1866.3,1865.4,0.63948511]
[1771883468615,0.0055162,1866.4,1865.4,0.63948511]
[1771883468814,6.02038012,1866.3,1865.4,0.63948511]
[1771883469016,0.0055162,1866.4,1865.4,0.63948511]
[1771883469217,6.02038318,1866.3,1865.4,0.63948511]
[1771883469419,0.0055162,1866.4,1865.4,0.63948511]
[1771883469719,6.02022201,1866.3,1865.4,0.63948511]
[1771883469918,0.0055162,1866.4,1865.4,0.63948511]
[1771883470215,6.0202227,1866.3,1865.4,0.63948511]
[1771883470412,0.0055162,1866.4,1865.4,0.63948511]
[1771883470607,6.02008623,1866.3,1865.4,0.63948511]
[1771883470818,0.0055162,1866.4,1865.4,0.63948511]
[1771883471017,6.02010791,1866.3,1865.4,0.63948511]
[1771883471218,0.0055162,1866.4,1865.4,0.63948511]
[1771883471423,6.02023536,1866.3,1865.4,0.63948511]
[1771883471720,0.0055162,1866.4,1865.4,0.63948511]
[1771883471918,6.02036023,1866.3,1865.4,0.63948511]
[1771883472118,0.0055162,1866.4,1865.4,0.63948511]
[1771883472316,6.01056382,1866.3,1865.4,0.63948511]
[1771883472519,0.0055162,1866.4,1865.4,0.63948511]
[1771883472718,6.01028767,1866.3,1865.4,0.63948511]
[1771883472919,0.0055162,1866.4,1865.4,0.63948511]
[1771883473121,6.01029018,1866.3,1865.4,0.63948511]
[1771883473322,0.0055162,1866.4,1865.4,0.63948511]
[1771883473614,6.01075586,1866.3,1865.4,0.63948511]
[1771883473819,0.0055162,1866.4,1865.4,0.63948511]
[1771883474016,6.01057706,1866.3,1865.4,0.63948511]
[1771883474219,0.0055162,1866.4,1865.4,0.63948511]
[1771883474422,6.01124292,1866.3,1865.4,0.63948511]
[1771883474726,0.0055162,1866.4,1865.4,0.63948511]
[1771883474925,6.01120437,1866.3,1865.4,0.63948511]
[1771883475228,0.0055162,1866.4,1865.4,0.63948511]
[1771883475427,6.01254918,1866.3,1865.4,0.63948511]
[1771883475627,0.0055162,1866.4,1865.4,0.63948511]
[1771883475828,6.01241669,1866.3,1865.4,0.63948511]
[1771883476030,0.0055162,1866.4,1865.4,0.63948511]
[1771883476329,6.01241716,1866.3,1865.4,0.63948511]
[1771883476527,6.01241716,1866.2,1865.4,0.63948511]
[1771883476729,0.0055162,1866.4,1865.4,0.63948511]
[1771883477028,6.01338816,1866.3,1865.4,0.63948511]
[1771883477327,6.01338816,1866.2,1865.4,0.63948511]
[1771883477528,0.0055162,1866.4,1865.4,0.63948511]
[1771883477729,6.01338751,1866.3,1865.4,0.63948511]
[1771883477929,6.01338751,1866.2,1865.4,0.63948511]
[1771883478228,0.0055162,1866.4,1865.4,0.63948511]
[1771883478430,6.0125912,1866.3,1865.4,0.63948511]
[1771883478628,6.0125912,1866.2,1865.4,0.63948511]
[1771883478829,0.0055162,1866.4,1865.4,0.63948511]
[1771883479030,6.01180103,1866.3,1865.4,0.63948511]
[1771883479227,6.01180103,1866.2,1865.4,0.63948511]
[1771883479425,0.0055162,1866.4,1865.4,0.63948511]
[1771883479621,2.53181655,1866.1,1865.1,0.62550334]
[1771883479827,6.01234342,1866.0,1865.1,0.62550334]
[1771883480134,4.73955463,1866.3,1865.1,0.62550334]
[1771883480334,6.01295852,1866.2,1865.1,0.62550334]
[1771883480533,6.01295852,1866.1,1865.1,0.62550334]
[1771883480831,6.01295852,1866.0,1865.1,0.62550334]
[1771883481034,4.73955463,1866.3,1865.1,0.62550334]
[1771883481333,6.01295541,1866.2,1865.1,0.62550334]
[1771883481535,6.01295541,1866.1,1865.1,0.62550334]
[1771883481835,6.01295541,1866.0,1865.1,0.62550334]
[1771883482033,4.73955463,1866.3,1865.1,0.62550334]
[1771883482235,6.01402286,1866.2,1865.1,0.62550334]
[1771883482534,6.01402286,1866.1,1865.1,0.62550334]
[1771883482730,6.01402286,1866.0,1865.1,0.62550334]
[1771883482937,6.01509228,1865.9,1865.1,0.62550334]
[1771883483235,2.53181655,1866.0,1865.1,0.62550334]
[1771883483439,6.01588401,1865.9,1865.1,0.62550334]
[1771883483735,7.00341118,1866.2,1865.1,0.62550334]
[1771883483926,6.01590212,1866.1,1865.1,0.62550334]
[1771883484128,6.01590212,1866.0,1865.1,0.62550334]
[1771883484325,6.01590212,1865.9,1865.1,0.62550334]
[1771883484528,4.47159463,1866.2,1865.1,0.62550334]
[1771883484931,10.48821606,1866.2,1865.1,0.62550334]
[1771883489241,6.01662143,1866.1,1865.1,0.62550334]
[1771883489442,6.01662143,1866.0,1865.1,0.62550334]
[1771883489638,6.01662143,1865.9,1865.1,0.62550334]
[1771883489833,4.47159463,1866.2,1865.1,0.62550334]
[1771883490038,10.49139533,1866.2,1865.1,0.62550334]
[1771883494041,6.0198007,1866.1,1865.3,0.61390559]
[1771883494242,6.0198007,1866.0,1865.3,0.61390559]
[1771883494447,4.73955463,1866.3,1865.3,0.61390559]
[1771883494650,6.01938406,1866.2,1865.3,0.61390559]
[1771883494946,6.01938406,1866.1,1865.3,0.61390559]
[1771883495147,6.01938406,1866.0,1865.3,0.61390559]
[1771883495447,2.52878681,1866.2,1865.4,0.61397759]
[1771883495650,6.01959244,1866.1,1865.4,0.61397759]
[1771883495847,6.01959244,1866.0,1865.4,0.61397759]
[1771883496145,2.52878681,1866.2,1865.4,0.61397759]
[1771883496340,6.01959433,1866.1,1865.4,0.61397759]
[1771883496542,6.01959433,1866.0,1865.4,0.61397759]
[1771883496741,2.52878681,1866.2,1865.4,0.61397759]
[1771883497040,6.01941266,1866.1,1865.4,0.61397759]
[1771883497241,6.01941266,1866.0,1865.4,0.61397759]
[1771883497447,2.52878681,1866.2,1865.4,0.61397759]
[1771883497650,6.01891724,1866.1,1865.4,0.61397759]
[1771883497845,6.01891724,1866.0,1865.4,0.61397759]
[1771883498046,2.52878681,1866.2,1865.4,0.61397759]
[1771883498249,6.01891712,1866.1,1865.4,0.61397759]
[1771883498444,6.01891712,1866.0,1865.4,0.61397759]
[1771883498644,2.52878681,1866.2,1865.4,0.61397759]
[1771883498845,6.01888552,1866.1,1865.4,0.61397759]
[1771883499047,6.01888552,1866.0,1865.4,0.61397759]
[1771883499251,6.01888358,1865.9,1865.4,0.61397759]
[1771883499449,7.00038144,1866.2,1865.4,0.61397759]
[1771883499646,6.01916797,1866.1,1865.4,0.61397759]
[1771883499841,6.01916797,1866.0,1865.4,0.61397759]
[1771883500046,6.01916797,1865.9,1865.4,0.61397759]
[1771883500246,7.00038144,1866.2,1865.4,0.61397759]
[1771883500447,2.52878681,1866.0,1865.3,0.61468068]
[1771883500651,6.01954568,1865.9,1865.3,0.61468068]
[1771883500951,2.52878681,1866.0,1865.3,0.61468068]
[1771883501150,6.01934563,1865.9,1865.3,0.61468068]
[1771883501351,2.52878681,1866.0,1865.3,0.61468068]
[1771883501553,6.01972597,1865.9,1865.3,0.61468068]
[1771883501850,2.52878681,1866.0,1865.3,0.61468068]
[1771883502047,6.01974984,1865.9,1865.3,0.61468068]
[1771883502246,2.52878681,1866.0,1865.3,0.61468068]
[1771883502446,6.02800201,1865.9,1865.3,0.61468068]
[1771883502647,2.52878681,1866.0,1865.3,0.61468068]
[1771883502848,6.02800269,1865.9,1865.3,0.61468068]
[1771883503048,2.52878681,1866.0,1865.3,0.61468068]
[1771883503251,6.02798772,1865.9,1865.3,0.61468068]
[1771883503452,2.52878681,1866.0,1865.3,0.61468068]
[1771883503652,6.0285058,1865.9,1865.3,0.61468068]
[1771883503854,2.52878681,1866.0,1865.3,0.61468068]
[1771883504154,6.02851196,1865.9,1865.3,0.61468068]
[1771883504342,2.52878681,1866.0,1865.3,0.61468068]
[1771883504547,2.52878681,1865.8,1865.1,0.61465325]
[1771883504749,6.02922784,1865.7,1865.1,0.61465325]
[1771883504949,2.52878681,1865.8,1865.1,0.61465325]
[1771883505152,6.02851883,1865.7,1865.1,0.61465325]
[1771883505452,2.52878681,1865.8,1865.1,0.61465325]
[1771883505751,6.02882279,1865.7,1865.2,0.61465325]
[1771883506051,7.26838144,1866.0,1865.2,0.61465325]
[1771883506245,6.02891405,1865.9,1865.2,0.61465325]
[1771883506451,6.02891405,1865.8,1865.2,0.61465325]